Workbook

Sheet Отчет за продажбите на продукти
B1: Отчет за продажбите на продукти
B20: Продукти

Sheet Хронологични данни
B1: Хронологичен ценоразпис и продажби на продуктите
B3: ИД на продукт | C3: Име на продукт | D3: Дата на цената | E3: Цена на дребно за един брой | F3: Цена на едро за един брой* | G3: Продадени бройки (на дребно) | H3: Продадени бройки (на едро) | I3: Общо продажби (бр.) | J3: Общо продажби (лв.)
B4: 5 | C4: =IFERROR(IF(табл_Продажби[[#This Row],[ИД на продукт]]<>"",VLOOKUP(табл_Продажби[ИД на продукт],табл_Продукти[[ИД на продукт]:[Име]],2,FALSE),""),"Неизвестен ИД на продукт") -> Шорти | D4: 2012-01-01 | E4: 20 | F4: 20 лв. | G4: 629 | H4: 1,254 | I4: =табл_Продажби[[#This Row],[Продадени бройки (на дребно)]]+табл_Продажби[[#This Row],[Продадени бройки (на едро)]] -> 1,883 | J4: =табл_Продажби[[#This Row],[Продадени бройки (на дребно)]]*табл_Продажби[[#This Row],[Цена на дребно за един брой]]+табл_Продажби[[#This Row],[Продадени бройки (на едро)]]*табл_Продажби[[#This Row],[Цена на едро за един брой*]] -> 37,660 лв.
B5: 1 | C5: =IFERROR(IF(табл_Продажби[[#This Row],[ИД на продукт]]<>"",VLOOKUP(табл_Продажби[ИД на продукт],табл_Продукти[[ИД на продукт]:[Име]],2,FALSE),""),"Неизвестен ИД на продукт") -> Ризи | D5: 2012-01-01 | E5: 88 | F5: 54 лв. | G5: 734 | H5: 1,427 | I5: =табл_Продажби[[#This Row],[Продадени бройки (на дребно)]]+табл_Продажби[[#This Row],[Продадени бройки (на едро)]] -> 2,161 | J5: =табл_Продажби[[#This Row],[Продадени бройки (на дребно)]]*табл_Продажби[[#This Row],[Цена на дребно за един брой]]+табл_Продажби[[#This Row],[Продадени бройки (на едро)]]*табл_Продажби[[#This Row],[Цена на едро за един брой*]] -> 141,650 лв.
B6: 2 | C6: =IFERROR(IF(табл_Продажби[[#This Row],[ИД на продукт]]<>"",VLOOKUP(табл_Продажби[ИД на продукт],табл_Продукти[[ИД на продукт]:[Име]],2,FALSE),""),"Неизвестен ИД на продукт") -> Сандали | D6: 2012-01-01 | E6: 70 | F6: 44 лв. | G6: 744 | H6: 1,043 | I6: =табл_Продажби[[#This Row],[Продадени бройки (на дребно)]]+табл_Продажби[[#This Row],[Продадени бройки (на едро)]] -> 1,787 | J6: =табл_Продажби[[#This Row],[Продадени бройки (на дребно)]]*табл_Продажби[[#This Row],[Цена на дребно за един брой]]+табл_Продажби[[#This Row],[Продадени бройки (на едро)]]*табл_Продажби[[#This Row],[Цена на едро за един брой*]] -> 97,972 лв.
B7: 3 | C7: =IFERROR(IF(табл_Продажби[[#This Row],[ИД на продукт]]<>"",VLOOKUP(табл_Продажби[ИД на продукт],табл_Продукти[[ИД на продукт]:[Име]],2,FALSE),""),"Неизвестен ИД на продукт") -> Чадъри | D7: 2012-01-01 | E7: 63 | F7: 44 лв. | G7: 681 | H7: 1,523 | I7: =табл_Продажби[[#This Row],[Продадени бройки (на дребно)]]+табл_Продажби[[#This Row],[Продадени бройки (на едро)]] -> 2,204 | J7: =табл_Продажби[[#This Row],[Продадени бройки (на дребно)]]*табл_Продажби[[#This Row],[Цена на дребно за един брой]]+табл_Продажби[[#This Row],[Продадени бройки (на едро)]]*табл_Продажби[[#This Row],[Цена на едро за един брой*]] -> 109,915 лв.
B8: 4 | C8: =IFERROR(IF(табл_Продажби[[#This Row],[ИД на продукт]]<>"",VLOOKUP(табл_Продажби[ИД на продукт],табл_Продукти[[ИД на продукт]:[Име]],2,FALSE),""),"Неизвестен ИД на продукт") -> Бутилки за вода | D8: 2012-01-01 | E8: 35 | F8: 27 лв. | G8: 602 | H8: 1,822 | I8: =табл_Продажби[[#This Row],[Продадени бройки (на дребно)]]+табл_Продажби[[#This Row],[Продадени бройки (на едро)]] -> 2,424 | J8: =табл_Продажби[[#This Row],[Продадени бройки (на дребно)]]*табл_Продажби[[#This Row],[Цена на дребно за един брой]]+табл_Продажби[[#This Row],[Продадени бройки (на едро)]]*табл_Продажби[[#This Row],[Цена на едро за един брой*]] -> 70,264 лв.
B9: 1 | C9: =IFERROR(IF(табл_Продажби[[#This Row],[ИД на продукт]]<>"",VLOOKUP(табл_Продажби[ИД на продукт],табл_Продукти[[ИД на продукт]:[Име]],2,FALSE),""),"Неизвестен ИД на продукт") -> Ризи | D9: 2012-02-01 | E9: 55 | F9: 44 лв. | G9: 678 | H9: 1,515 | I9: =табл_Продажби[[#This Row],[Продадени бройки (на дребно)]]+табл_Продажби[[#This Row],[Продадени бройки (на едро)]] -> 2,193 | J9: =табл_Продажби[[#This Row],[Продадени бройки (на дребно)]]*табл_Продажби[[#This Row],[Цена на дребно за един брой]]+табл_Продажби[[#This Row],[Продадени бройки (на едро)]]*табл_Продажби[[#This Row],[Цена на едро за един брой*]] -> 103,950 лв.
B10: 2 | C10: =IFERROR(IF(табл_Продажби[[#This Row],[ИД на продукт]]<>"",VLOOKUP(табл_Продажби[ИД на продукт],табл_Продукти[[ИД на продукт]:[Име]],2,FALSE),""),"Неизвестен ИД на продукт") -> Сандали | D10: 2012-02-01 | E10: 83 | F10: 54 лв. | G10: 753 | H10: 1,005 | I10: =табл_Продажби[[#This Row],[Продадени бройки (на дребно)]]+табл_Продажби[[#This Row],[Продадени бройки (на едро)]] -> 1,758 | J10: =табл_Продажби[[#This Row],[Продадени бройки (на дребно)]]*табл_Продажби[[#This Row],[Цена на дребно за един брой]]+табл_Продажби[[#This Row],[Продадени бройки (на едро)]]*табл_Продажби[[#This Row],[Цена на едро за един брой*]] -> 116,769 лв.
B11: 3 | C11: =IFERROR(IF(табл_Продажби[[#This Row],[ИД на продукт]]<>"",VLOOKUP(табл_Продажби[ИД на продукт],табл_Продукти[[ИД на продукт]:[Име]],2,FALSE),""),"Неизвестен ИД на продукт") -> Чадъри | D11: 2012-02-01 | E11: 34 | F11: 34 лв. | G11: 986 | H11: 1,069 | I11: =табл_Продажби[[#This Row],[Продадени бройки (на дребно)]]+табл_Продажби[[#This Row],[Продадени бройки (на едро)]] -> 2,055 | J11: =табл_Продажби[[#This Row],[Продадени бройки (на дребно)]]*табл_Продажби[[#This Row],[Цена на дребно за един брой]]+табл_Продажби[[#This Row],[Продадени бройки (на едро)]]*табл_Продажби[[#This Row],[Цена на едро за един брой*]] -> 69,870 лв.
B12: 4 | C12: =IFERROR(IF(табл_Продажби[[#This Row],[ИД на продукт]]<>"",VLOOKUP(табл_Продажби[ИД на продукт],табл_Продукти[[ИД на продукт]:[Име]],2,FALSE),""),"Неизвестен ИД на продукт") -> Бутилки за вода | D12: 2012-02-01 | E12: 35 | F12: 25 лв. | G12: 848 | H12: 1,211 | I12: =табл_Продажби[[#This Row],[Продадени бройки (на дребно)]]+табл_Продажби[[#This Row],[Продадени бройки (на едро)]] -> 2,059 | J12: =табл_Продажби[[#This Row],[Продадени бройки (на дребно)]]*табл_Продажби[[#This Row],[Цена на дребно за един брой]]+табл_Продажби[[#This Row],[Продадени бройки (на едро)]]*табл_Продажби[[#This Row],[Цена на едро за един брой*]] -> 59,955 лв.
B13: 5 | C13: =IFERROR(IF(табл_Продажби[[#This Row],[ИД на продукт]]<>"",VLOOKUP(табл_Продажби[ИД на продукт],табл_Продукти[[ИД на продукт]:[Име]],2,FALSE),""),"Неизвестен ИД на продукт") -> Шорти | D13: 2012-02-01 | E13: 41 | F13: 38 лв. | G13: 980 | H13: 1,330 | I13: =табл_Продажби[[#This Row],[Продадени бройки (на дребно)]]+табл_Продажби[[#This Row],[Продадени бройки (на едро)]] -> 2,310 | J13: =табл_Продажби[[#This Row],[Продадени бройки (на дребно)]]*табл_Продажби[[#This Row],[Цена на дребно за един брой]]+табл_Продажби[[#This Row],[Продадени бройки (на едро)]]*табл_Продажби[[#This Row],[Цена на едро за един брой*]] -> 90,720 лв.
B14: 1 | C14: =IFERROR(IF(табл_Продажби[[#This Row],[ИД на продукт]]<>"",VLOOKUP(табл_Продажби[ИД на продукт],табл_Продукти[[ИД на продукт]:[Име]],2,FALSE),""),"Неизвестен ИД на продукт") -> Ризи | D14: 2012-02-29 | E14: 27 | F14: 18 лв. | G14: 533 | H14: 1,936 | I14: =табл_Продажби[[#This Row],[Продадени бройки (на дребно)]]+табл_Продажби[[#This Row],[Продадени бройки (на едро)]] -> 2,469 | J14: =табл_Продажби[[#This Row],[Продадени бройки (на дребно)]]*табл_Продажби[[#This Row],[Цена на дребно за един брой]]+табл_Продажби[[#This Row],[Продадени бройки (на едро)]]*табл_Продажби[[#This Row],[Цена на едро за един брой*]] -> 49,239 лв.
B15: 2 | C15: =IFERROR(IF(табл_Продажби[[#This Row],[ИД на продукт]]<>"",VLOOKUP(табл_Продажби[ИД на продукт],табл_Продукти[[ИД на продукт]:[Име]],2,FALSE),""),"Неизвестен ИД на продукт") -> Сандали | D15: 2012-02-29 | E15: 38 | F15: 28 лв. | G15: 952 | H15: 1,512 | I15: =табл_Продажби[[#This Row],[Продадени бройки (на дребно)]]+табл_Продажби[[#This Row],[Продадени бройки (на едро)]] -> 2,464 | J15: =табл_Продажби[[#This Row],[Продадени бройки (на дребно)]]*табл_Продажби[[#This Row],[Цена на дребно за един брой]]+табл_Продажби[[#This Row],[Продадени бройки (на едро)]]*табл_Продажби[[#This Row],[Цена на едро за един брой*]] -> 78,512 лв.
B16: 3 | C16: =IFERROR(IF(табл_Продажби[[#This Row],[ИД на продукт]]<>"",VLOOKUP(табл_Продажби[ИД на продукт],табл_Продукти[[ИД на продукт]:[Име]],2,FALSE),""),"Неизвестен ИД на продукт") -> Чадъри | D16: 2012-02-29 | E16: 92 | F16: 92 лв. | G16: 956 | H16: 1,266 | I16: =табл_Продажби[[#This Row],[Продадени бройки (на дребно)]]+табл_Продажби[[#This Row],[Продадени бройки (на едро)]] -> 2,222 | J16: =табл_Продажби[[#This Row],[Продадени бройки (на дребно)]]*табл_Продажби[[#This Row],[Цена на дребно за един брой]]+табл_Продажби[[#This Row],[Продадени бройки (на едро)]]*табл_Продажби[[#This Row],[Цена на едро за един брой*]] -> 204,424 лв.
B17: 4 | C17: =IFERROR(IF(табл_Продажби[[#This Row],[ИД на продукт]]<>"",VLOOKUP(табл_Продажби[ИД на продукт],табл_Продукти[[ИД на продукт]:[Име]],2,FALSE),""),"Неизвестен ИД на продукт") -> Бутилки за вода | D17: 2012-02-29 | E17: 43 | F17: 36 лв. | G17: 952 | H17: 1,390 | I17: =табл_Продажби[[#This Row],[Продадени бройки (на дребно)]]+табл_Продажби[[#This Row],[Продадени бройки (на едро)]] -> 2,342 | J17: =табл_Продажби[[#This Row],[Продадени бройки (на дребно)]]*табл_Продажби[[#This Row],[Цена на дребно за един брой]]+табл_Продажби[[#This Row],[Продадени бройки (на едро)]]*табл_Продажби[[#This Row],[Цена на едро за един брой*]] -> 90,976 лв.
B18: 5 | C18: =IFERROR(IF(табл_Продажби[[#This Row],[ИД на продукт]]<>"",VLOOKUP(табл_Продажби[ИД на продукт],табл_Продукти[[ИД на продукт]:[Име]],2,FALSE),""),"Неизвестен ИД на продукт") -> Шорти | D18: 2012-02-29 | E18: 98 | F18: 73 лв. | G18: 530 | H18: 1,452 | I18: =табл_Продажби[[#This Row],[Продадени бройки (на дребно)]]+табл_Продажби[[#This Row],[Продадени бройки (на едро)]] -> 1,982 | J18: =табл_Продажби[[#This Row],[Продадени бройки (на дребно)]]*табл_Продажби[[#This Row],[Цена на дребно за един брой]]+табл_Продажби[[#This Row],[Продадени бройки (на едро)]]*табл_Продажби[[#This Row],[Цена на едро за един брой*]] -> 157,936 лв.
B19: 1 | C19: =IFERROR(IF(табл_Продажби[[#This Row],[ИД на продукт]]<>"",VLOOKUP(табл_Продажби[ИД на продукт],табл_Продукти[[ИД на продукт]:[Име]],2,FALSE),""),"Неизвестен ИД на продукт") -> Ризи | D19: 2012-03-31 | E19: 38 | F19: 28 лв. | G19: 973 | H19: 1,415 | I19: =табл_Продажби[[#This Row],[Продадени бройки (на дребно)]]+табл_Продажби[[#This Row],[Продадени бройки (на едро)]] -> 2,388 | J19: =табл_Продажби[[#This Row],[Продадени бройки (на дребно)]]*табл_Продажби[[#This Row],[Цена на дребно за един брой]]+табл_Продажби[[#This Row],[Продадени бройки (на едро)]]*табл_Продажби[[#This Row],[Цена на едро за един брой*]] -> 76,594 лв.
B20: 2 | C20: =IFERROR(IF(табл_Продажби[[#This Row],[ИД на продукт]]<>"",VLOOKUP(табл_Продажби[ИД на продукт],табл_Продукти[[ИД на продукт]:[Име]],2,FALSE),""),"Неизвестен ИД на продукт") -> Сандали | D20: 2012-03-31 | E20: 50 | F20: 36 лв. | G20: 672 | H20: 1,105 | I20: =табл_Продажби[[#This Row],[Продадени бройки (на дребно)]]+табл_Продажби[[#This Row],[Продадени бройки (на едро)]] -> 1,777 | J20: =табл_Продажби[[#This Row],[Продадени бройки (на дребно)]]*табл_Продажби[[#This Row],[Цена на дребно за един брой]]+табл_Продажби[[#This Row],[Продадени бройки (на едро)]]*табл_Продажби[[#This Row],[Цена на едро за един брой*]] -> 73,380 лв.
B21: 3 | C21: =IFERROR(IF(табл_Продажби[[#This Row],[ИД на продукт]]<>"",VLOOKUP(табл_Продажби[ИД на продукт],табл_Продукти[[ИД на продукт]:[Име]],2,FALSE),""),"Неизвестен ИД на продукт") -> Чадъри | D21: 2012-03-31 | E21: 24 | F21: 23 лв. | G21: 769 | H21: 1,629 | I21: =табл_Продажби[[#This Row],[Продадени бройки (на дребно)]]+табл_Продажби[[#This Row],[Продадени бройки (на едро)]] -> 2,398 | J21: =табл_Продажби[[#This Row],[Продадени бройки (на дребно)]]*табл_Продажби[[#This Row],[Цена на дребно за един брой]]+табл_Продажби[[#This Row],[Продадени бройки (на едро)]]*табл_Продажби[[#This Row],[Цена на едро за един брой*]] -> 55,923 лв.
B22: 4 | C22: =IFERROR(IF(табл_Продажби[[#This Row],[ИД на продукт]]<>"",VLOOKUP(табл_Продажби[ИД на продукт],табл_Продукти[[ИД на продукт]:[Име]],2,FALSE),""),"Неизвестен ИД на продукт") -> Бутилки за вода | D22: 2012-03-31 | E22: 72 | F22: 57 лв. | G22: 985 | H22: 1,848 | I22: =табл_Продажби[[#This Row],[Продадени бройки (на дребно)]]+табл_Продажби[[#This Row],[Продадени бройки (на едро)]] -> 2,833 | J22: =табл_Продажби[[#This Row],[Продадени бройки (на дребно)]]*табл_Продажби[[#This Row],[Цена на дребно за един брой]]+табл_Продажби[[#This Row],[Продадени бройки (на едро)]]*табл_Продажби[[#This Row],[Цена на едро за един брой*]] -> 176,256 лв.
B23: 5 | C23: =IFERROR(IF(табл_Продажби[[#This Row],[ИД на продукт]]<>"",VLOOKUP(табл_Продажби[ИД на продукт],табл_Продукти[[ИД на продукт]:[Име]],2,FALSE),""),"Неизвестен ИД на продукт") -> Шорти | D23: 2012-03-31 | E23: 85 | F23: 43 лв. | G23: 721 | H23: 1,426 | I23: =табл_Продажби[[#This Row],[Продадени бройки (на дребно)]]+табл_Продажби[[#This Row],[Продадени бройки (на едро)]] -> 2,147 | J23: =табл_Продажби[[#This Row],[Продадени бройки (на дребно)]]*табл_Продажби[[#This Row],[Цена на дребно за един брой]]+табл_Продажби[[#This Row],[Продадени бройки (на едро)]]*табл_Продажби[[#This Row],[Цена на едро за един брой*]] -> 122,603 лв.
B24: 1 | C24: =IFERROR(IF(табл_Продажби[[#This Row],[ИД на продукт]]<>"",VLOOKUP(табл_Продажби[ИД на продукт],табл_Продукти[[ИД на продукт]:[Име]],2,FALSE),""),"Неизвестен ИД на продукт") -> Ризи | D24: 2012-04-30 | E24: 91 | F24: 65 лв. | G24: 603 | H24: 1,226 | I24: =табл_Продажби[[#This Row],[Продадени бройки (на дребно)]]+табл_Продажби[[#This Row],[Продадени бройки (на едро)]] -> 1,829 | J24: =табл_Продажби[[#This Row],[Продадени бройки (на дребно)]]*табл_Продажби[[#This Row],[Цена на дребно за един брой]]+табл_Продажби[[#This Row],[Продадени бройки (на едро)]]*табл_Продажби[[#This Row],[Цена на едро за един брой*]] -> 134,563 лв.
B25: 2 | C25: =IFERROR(IF(табл_Продажби[[#This Row],[ИД на продукт]]<>"",VLOOKUP(табл_Продажби[ИД на продукт],табл_Продукти[[ИД на продукт]:[Име]],2,FALSE),""),"Неизвестен ИД на продукт") -> Сандали | D25: 2012-04-30 | E25: 91 | F25: 55 лв. | G25: 892 | H25: 1,823 | I25: =табл_Продажби[[#This Row],[Продадени бройки (на дребно)]]+табл_Продажби[[#This Row],[Продадени бройки (на едро)]] -> 2,715 | J25: =табл_Продажби[[#This Row],[Продадени бройки (на дребно)]]*табл_Продажби[[#This Row],[Цена на дребно за един брой]]+табл_Продажби[[#This Row],[Продадени бройки (на едро)]]*табл_Продажби[[#This Row],[Цена на едро за един брой*]] -> 181,437 лв.
B26: 3 | C26: =IFERROR(IF(табл_Продажби[[#This Row],[ИД на продукт]]<>"",VLOOKUP(табл_Продажби[ИД на продукт],табл_Продукти[[ИД на продукт]:[Име]],2,FALSE),""),"Неизвестен ИД на продукт") -> Чадъри | D26: 2012-04-30 | E26: 42 | F26: 42 лв. | G26: 611 | H26: 1,181 | I26: =табл_Продажби[[#This Row],[Продадени бройки (на дребно)]]+табл_Продажби[[#This Row],[Продадени бройки (на едро)]] -> 1,792 | J26: =табл_Продажби[[#This Row],[Продадени бройки (на дребно)]]*табл_Продажби[[#This Row],[Цена на дребно за един брой]]+табл_Продажби[[#This Row],[Продадени бройки (на едро)]]*табл_Продажби[[#This Row],[Цена на едро за един брой*]] -> 75,264 лв.
B27: 4 | C27: =IFERROR(IF(табл_Продажби[[#This Row],[ИД на продукт]]<>"",VLOOKUP(табл_Продажби[ИД на продукт],табл_Продукти[[ИД на продукт]:[Име]],2,FALSE),""),"Неизвестен ИД на продукт") -> Бутилки за вода | D27: 2012-04-30 | E27: 85 | F27: 43 лв. | G27: 530 | H27: 1,039 | I27: =табл_Продажби[[#This Row],[Продадени бройки (на дребно)]]+табл_Продажби[[#This Row],[Продадени бройки (на едро)]] -> 1,569 | J27: =табл_Продажби[[#This Row],[Продадени бройки (на дребно)]]*табл_Продажби[[#This Row],[Цена на дребно за един брой]]+табл_Продажби[[#This Row],[Продадени бройки (на едро)]]*табл_Продажби[[#This Row],[Цена на едро за един брой*]] -> 89,727 лв.
B28: 5 | C28: =IFERROR(IF(табл_Продажби[[#This Row],[ИД на продукт]]<>"",VLOOKUP(табл_Продажби[ИД на продукт],табл_Продукти[[ИД на продукт]:[Име]],2,FALSE),""),"Неизвестен ИД на продукт") -> Шорти | D28: 2012-04-30 | E28: 82 | F28: 71 лв. | G28: 716 | H28: 1,249 | I28: =табл_Продажби[[#This Row],[Продадени бройки (на дребно)]]+табл_Продажби[[#This Row],[Продадени бройки (на едро)]] -> 1,965 | J28: =табл_Продажби[[#This Row],[Продадени бройки (на дребно)]]*табл_Продажби[[#This Row],[Цена на дребно за един брой]]+табл_Продажби[[#This Row],[Продадени бройки (на едро)]]*табл_Продажби[[#This Row],[Цена на едро за един брой*]] -> 147,391 лв.
B29: 1 | C29: =IFERROR(IF(табл_Продажби[[#This Row],[ИД на продукт]]<>"",VLOOKUP(табл_Продажби[ИД на продукт],табл_Продукти[[ИД на продукт]:[Име]],2,FALSE),""),"Неизвестен ИД на продукт") -> Ризи | D29: 2012-05-14 | E29: 34 | F29: 31 лв. | G29: 850 | H29: 1,548 | I29: =табл_Продажби[[#This Row],[Продадени бройки (на дребно)]]+табл_Продажби[[#This Row],[Продадени бройки (на едро)]] -> 2,398 | J29: =табл_Продажби[[#This Row],[Продадени бройки (на дребно)]]*табл_Продажби[[#This Row],[Цена на дребно за един брой]]+табл_Продажби[[#This Row],[Продадени бройки (на едро)]]*табл_Продажби[[#This Row],[Цена на едро за един брой*]] -> 76,888 лв.
B30: 2 | C30: =IFERROR(IF(табл_Продажби[[#This Row],[ИД на продукт]]<>"",VLOOKUP(табл_Продажби[ИД на продукт],табл_Продукти[[ИД на продукт]:[Име]],2,FALSE),""),"Неизвестен ИД на продукт") -> Сандали | D30: 2012-05-14 | E30: 64 | F30: 40 лв. | G30: 876 | H30: 1,663 | I30: =табл_Продажби[[#This Row],[Продадени бройки (на дребно)]]+табл_Продажби[[#This Row],[Продадени бройки (на едро)]] -> 2,539 | J30: =табл_Продажби[[#This Row],[Продадени бройки (на дребно)]]*табл_Продажби[[#This Row],[Цена на дребно за един брой]]+табл_Продажби[[#This Row],[Продадени бройки (на едро)]]*табл_Продажби[[#This Row],[Цена на едро за един брой*]] -> 122,584 лв.
B31: 3 | C31: =IFERROR(IF(табл_Продажби[[#This Row],[ИД на продукт]]<>"",VLOOKUP(табл_Продажби[ИД на продукт],табл_Продукти[[ИД на продукт]:[Име]],2,FALSE),""),"Неизвестен ИД на продукт") -> Чадъри | D31: 2012-05-14 | E31: 33 | F31: 30 лв. | G31: 881 | H31: 1,149 | I31: =табл_Продажби[[#This Row],[Продадени бройки (на дребно)]]+табл_Продажби[[#This Row],[Продадени бройки (на едро)]] -> 2,030 | J31: =табл_Продажби[[#This Row],[Продадени бройки (на дребно)]]*табл_Продажби[[#This Row],[Цена на дребно за един брой]]+табл_Продажби[[#This Row],[Продадени бройки (на едро)]]*табл_Продажби[[#This Row],[Цена на едро за един брой*]] -> 63,543 лв.
B32: 4 | C32: =IFERROR(IF(табл_Продажби[[#This Row],[ИД на продукт]]<>"",VLOOKUP(табл_Продажби[ИД на продукт],табл_Продукти[[ИД на продукт]:[Име]],2,FALSE),""),"Неизвестен ИД на продукт") -> Бутилки за вода | D32: 2012-05-14 | E32: 29 | F32: 27 лв. | G32: 802 | H32: 1,548 | I32: =табл_Продажби[[#This Row],[Продадени бройки (на дребно)]]+табл_Продажби[[#This Row],[Продадени бройки (на едро)]] -> 2,350 | J32: =табл_Продажби[[#This Row],[Продадени бройки (на дребно)]]*табл_Продажби[[#This Row],[Цена на дребно за един брой]]+табл_Продажби[[#This Row],[Продадени бройки (на едро)]]*табл_Продажби[[#This Row],[Цена на едро за един брой*]] -> 65,054 лв.
B33: 5 | C33: =IFERROR(IF(табл_Продажби[[#This Row],[ИД на продукт]]<>"",VLOOKUP(табл_Продажби[ИД на продукт],табл_Продукти[[ИД на продукт]:[Име]],2,FALSE),""),"Неизвестен ИД на продукт") -> Шорти | D33: 2013-12-11 | E33: 24 | F33: 15 лв. | G33: 824 | H33: 1,994 | I33: =табл_Продажби[[#This Row],[Продадени бройки (на дребно)]]+табл_Продажби[[#This Row],[Продадени бройки (на едро)]] -> 2,818 | J33: =табл_Продажби[[#This Row],[Продадени бройки (на дребно)]]*табл_Продажби[[#This Row],[Цена на дребно за един брой]]+табл_Продажби[[#This Row],[Продадени бройки (на едро)]]*табл_Продажби[[#This Row],[Цена на едро за един брой*]] -> 49,686 лв.

Sheet Ценоразпис
B1: Ценоразпис на продуктите
B3: Adventure Works
B4: ул. Драган Цанков 23456
B5: Пловдив 3456
B6: Тел.: (425) 555-0150
B7: Факс: (425) 555-0152
B8: www.adventure-works.com | F8: Последно актуализиране 15.08.2013 r.
B10: ИД на продукт | C10: Име | D10: Описание | E10: Цена на дребно за един брой | F10: Цена на едро за един брой*
B11: 1 | C11: Ризи | D11: Чувствайте прохлада през цялото лято с нашите предварително свити ризи от 100% памук. | E11: 22 лв. | F11: 15.00 лв.
B12: 2 | C12: Сандали | D12: Сложете нашите стабилни сандали с каучукова подметка и ходете с лекота и по най-горещия пясък. | E12: 10 лв. | F12: 6.00 лв.
B13: 3 | C13: Чадъри | D13: Скрийте се от слънцето под нашите големи плажни чадъри, които не пропускат 96% от всички вредни ултравиолетови лъчи. | E13: 30 лв. | F13: 20.00 лв.
B14: 4 | C14: Бутилки за вода | D14: Пийте вода при идеална температура от нашата изолирана бутилка за вода. | E14: 7 лв. | F14: 5.00 лв.
B15: 5 | C15: Шорти | D15: С нашите бързосъхнещи найлонови шорти можете от водата да се отправите направо към колата. | E15: 15 лв. | F15: 8.00 лв.
F17: Обадете ни се за артикули извън списъка.
F18: *Цените на едро важат да количества от 12 бройки нагоре.

Sheet Обобщение на ценовите точки (hidden)
B1: Обобщена таблица на ценовите точки
B2: Този лист трябва да остане скрит. Всяка промяна в обобщената таблица по-долу може да доведе до неправилни данни в отчета за продажбите на продукти.
B3: Избран продукт: | C3: =IF(LEN(B5),B5,"None") -> Сандали
B4: Име на продукт | C4: Цена на дребно за един брой | D4: Сума на общите продажби (бр.)
B5: Сандали | C5: 38 лв. | D5: 2464
C6: 50 лв. | D6: 1777
C7: 64 лв. | D7: 2539
C8: 70 лв. | D8: 1787
C9: 83 лв. | D9: 1758
C10: 91 лв. | D10: 2715

Sheet Обобщена тенденция на продажби (hidden)
B1: Обобщена таблица на тенденцията на продажбите
B2: Този лист трябва да остане скрит. Всяка промяна в обобщената таблица по-долу може да доведе до неправилни данни в отчета за продажбите на продукти.
B3: Сума на общите продажби (бр.) | C3: Име на продукт
B4: Дата на цената | C4: Сандали
B5: яну | C5: 1787
B6: фев | C6: 4222
B7: мар | C7: 1777
B8: апр | C8: 2715
B9: май | C9: 2539
